Cogmind - Beta 15 @@@ ROGUE MODE // 2025.08.07 @ 18:14:26 Player: Skysub Result: Destroyed by G-47 Trooper with Particle Gun Performance ------------- Evolutions (0) 0 Regions Visited (2) 400 Robots Destroyed (23) 115 Value Destroyed (413) 413 Prototype IDs (2) 40 Alien Tech Used (0) 0 Bonus (0) 0 TOTAL SCORE: 968 Bonus ------- None Cogmind --------- Core Integrity 0/250 Matter 295/300 Energy 250/250 System Corruption 0% Temperature Cool (9) Movement Treading (480) Ox4 Location -10/Subcaves Parts ------- > --- POWER (1) -------- Ion Engine > --- PROPULSION (2) --- Light Treads Compact Wheel > --- UTILITY (2) ------ Huge Storage Unit Weapon Shielding > --- WEAPON (2) ------- Light Assault Rifle Barrage Gun > --- INVENTORY (25) --- Light Treads Light Treads Wheel Subdweller Monowheel Small Storage Unit Medium Storage Unit High-capacity Matter Pod (200) Subdweller Optics Subdweller Optics Seismic Detector Targeting Computer Propulsion Shielding Scrap Shield Small Laser Subdweller Laser Subdweller Laser Subdweller Laser Subdweller Laser Grenade Launcher Datajack Mining Laser Hammer Peak State ------------ > --- POWER ------------ Ion Engine > --- PROPULSION ------- Light Treads Compact Wheel > --- UTILITY ---------- Huge Storage Unit Seismic Detector > --- WEAPON ----------- Heavy Riot Gun Barrage Gun > --- INVENTORY -------- Ion Engine Light Treads Light Treads Light Treads Wheel Subdweller Monowheel Small Storage Unit Medium Storage Unit High-capacity Matter Pod Subdweller Optics Targeting Computer Propulsion Shielding Weapon Shielding Scrap Shield Small Laser Subdweller Laser Subdweller Laser Subdweller Laser Subdweller Laser Light Assault Rifle Grenade Launcher Datajack Mining Laser Hammer [Rating: 15] Favorites ----------- Power Ion Engine Engine Ion Engine Propulsion Light Treads Treads Light Treads Wheel Compact Wheel Utility Seismic Detector Device Seismic Detector Storage Huge Storage Unit Protection Weapon Shielding Weapon Light Assault Rifle Energy Gun Small Laser Ballistic Gun Light Assault Rifle Impact Weapon Hammer Build | -11 -10 -10 ------- Run | Yrd Mat Sub Slots Evolved . | . . . Power . | . . . Propulsion . | . . . Utility . | . . . Weapon . | . . . Parts Attached 16 | 7 4 5 Power 2 | 1 . 1 Engine 2 | 1 . 1 Core . | . . . Reactor . | . . . Propulsion 4 | 2 1 1 Treads 3 | 2 . 1 Leg . | . . . Wheel 1 | . 1 . Hover . | . . . Flight . | . . . Utility 4 | 2 1 1 Device 1 | 1 . . Storage 2 | 1 1 . Processor . | . . . Hackware . | . . . Protection 1 | . . 1 Artifact . | . . . Weapon 6 | 2 2 2 Energy Gun 2 | 1 . 1 Energy Cannon . | . . . Ballistic Gun 3 | 1 1 1 Ballistic Cannon . | . . . Launcher . | . . . Special Weapon . | . . . Impact Weapon 1 | . 1 . Slashing Weapon . | . . . Piercing Weapon . | . . . Special Melee Weapon . | . . . Unidentified Prototypes . | . . . Parts Lost 4 | . 1 3 Power 1 | . . 1 Propulsion 1 | . . 1 Utility . | . . . Weapon 2 | . 1 1 Highest Loss Streak 3 | . 1 3 To Critical Strikes 1 | . 1 . Average Backups 13 | 2 9 20 Power . | . 1 . Propulsion 3 | 1 3 4 Utility 4 | . 3 7 Weapon 3 | . 1 6 Tool/Special . | . . . Unused Backups 17 | . . 17 Power . | . . . Propulsion 3 | . . 3 Utility 7 | . . 7 Weapon 6 | . . 6 Tool/Special 1 | . . 1 Average Slot Usage (%) 99 | . 100 98 Engine 13 | . 14 13 Treads 17 | . 21 13 Wheel 10 | . 6 14 Device 9 | . 10 9 Storage 15 | . 17 14 Protection 2 | . . 4 Energy Gun 9 | . 10 7 Ballistic Gun 15 | . 14 18 Impact Weapon 2 | . 3 1 Peak Build Rating 15 | 7 8 15 Average Rating 9 | 5 7 12 On Entrance 5 | . 7 8 Naked Turns . | . . . Heaviest Build 93 | 13 92 93 Greatest Support 40 | 40 40 16 Greatest Overweight (x) 5 | 3 5 5 Average Overweight (x) 3 | . 2 5 Largest Inventory Capacity 25 | 8 25 25 Average Capacity 19 | 7 16 25 Most Carried 25 | 4 15 25 Average Carried 14 | 2 9 21 Final Capacity 25 | 8 25 25 Final Carried 23 | 4 15 23 Class Distribution -------------------- 100% | Mutant Dominant Class ---------------- Mutant | -10/Materials Mutant | -10/Subcaves Resources | -11 -10 -10 ----------- Run | Yrd Mat Sub Matter Collected 678 | 278 258 142 Remotely . | . . . Salvage Created 582 | 39 295 248 Parts 36 | 6 20 10 Haulers Intercepted 2 | . 2 . Recyclers Shooed . | . . . Parts Field Recycled . | . . . Retrieved Matter . | . . . Parts Self-Destructed 10 | . . 10 Prevented . | . . . Kills | -11 -10 -10 ------- Run | Yrd Mat Sub Combat Hostiles Destroyed 15 | . 8 7 Guns 13 | . 8 5 AOE 2 | . . 2 Classes Destroyed 8 | 1 5 2 Worker 1 | . 1 . Tunneler 2 | 2 . . Hauler 2 | . 2 . Turret 2 | . . 2 Watcher 1 | . 1 . Swarmer 9 | . 6 3 Grunt 2 | . 2 . Subdweller 4 | . . 4 Best Kill Streak 4 | 1 3 4 Combat Bots Only 3 | . 3 3 Max Kills in Single Turn 2 | 1 1 2 Gunslinging . | . . . Exploded 2 | . . 2 Melee . | . . . Uniques/NPCs Destroyed . | . . . Combat | -11 -10 -10 -------- Run | Yrd Mat Sub Hostile Shots Fired 126 | . 53 73 Missed 47 | . 10 37 Hits 79 | . 43 36 Projectile 79 | . 43 36 AOE 4 | . . 4 Critical Strikes 1 | . 1 . Damage Taken 956 | . 385 571 Core 262 | . 60 202 Absorbed by Shields . | . . . Redirected to Shielding 42 | . . 42 Core Remaining (%) 100 | 100 . . Volleys Fired 87 | 18 42 27 Largest 2 | 2 2 2 Hottest 88 | 60 60 88 Shots Fired 162 | 36 76 50 Gun 162 | 36 76 50 Cannon . | . . . Launcher . | . . . Special . | . . . Kinetic 88 | 18 42 28 Thermal 52 | 18 34 . Explosive . | . . . Electromagnetic 22 | . . 22 Robot Hit Streak 6 | 4 6 6 Robot Miss Streak 4 | 2 4 3 Penetration Max . | . . . Secondary Targets 3 | . 3 . Max Gunslinging Chain 1 | . 1 . Shots Hit Robots 101 | 20 45 36 Core Hits 43 | 4 19 20 Critical Kills . | . . . Critical Parts Destroyed 1 | . 1 . Critical Strikes 1 | . 1 . Destroy 1 | . 1 . Melee Attacks 5 | . 5 . Impact 5 | . 5 . Slashing . | . . . Piercing . | . . . Sneak Attacks 2 | . 2 . Combat Hostiles . | . . . Follow-up Attacks . | . . . Damage Inflicted 1268 | 189 541 538 Guns 1033 | 189 414 430 Cannons . | . . . Explosions 108 | . . 108 Melee 127 | . 127 . Ramming . | . . . Kinetic 453 | 78 208 167 Thermal 425 | 111 206 108 Explosive . | . . . Electromagnetic 263 | . . 263 Impact 127 | . 127 . Slashing . | . . . Piercing . | . . . Highest Corruption . | . . . Average Corruption . | . . . Corruption Purged . | . . . Corruption Blocked . | . . . Overload Shots . | . . . Overflow Damage 37 | . 37 . Projectiles . | . . . Explosions . | . . . Melee 37 | . 37 . Knockbacks . | . . . Impact . | . . . Kinetic . | . . . Secondary . | . . . Self-Inflicted Damage 82 | . . 82 Shots 2 | . . 2 Rammed . | . . . Targets Rammed . | . . . Kicked . | . . . Crushed . | . . . Highest Temperature 112 | 60 112 18 Average Temperature 27 | 29 30 9 Received Heat Transfer 198 | . 78 120 Siege Activations . | . . . Martial Activations . | . . . Shielding Activations . | . . . Robots Disrupted . | . . . Combat Hostiles . | . . . Robots Corrupted . | . . . Combat Hostiles . | . . . Parts Fried . | . . . Impact Corruptions 2 | . 2 . Robots Melted . | . . . Combat Hostiles . | . . . Parts Melted . | . . . Heat Transferred 850 | 250 450 150 Parts Sabotaged . | . . . Parts Stolen . | . . . Parts Stripped . | . . . Power Chain Reactions 2 | . . 2 Alert | -11 -10 -10 ------- Run | Yrd Mat Sub Maximum Alert Level . | . . . Low Security (%) 100 | 100 100 . Level 1 . | . . . Level 2 . | . . . Level 3 . | . . . Level 4 . | . . . Level 5 . | . . . High Security . | . . . Max Security . | . . . Peak Influence 97 | 5 97 . Initial . | . . . Average 24 | . 28 . Influence Increases 830 | 10 240 580 Destroy 0b10 Robot/C 260 | . 160 100 Destroy 0b10 Robot/NC 30 | 10 20 . Destroy Leader 36 | . 36 . Successful Hack 7 | . 7 . Destroy Structure 2 | . 2 . Lose Combat Pursuer 495 | . 15 480 Influence Decreases 478 | 10 240 228 Time Decay 438 | 10 230 198 Lost Part 40 | . 10 30 Squads Dispatched 1 | . 1 . Investigation 1 | . 1 . Extermination . | . . . Reinforcement . | . . . Assault . | . . . Garrison . | . . . Intercept . | . . . Searches Triggered . | . . . Construction Impeded . | . . . Haulers Reinforced . | . . . Active Scanning Responses . | . . . Cargo Convoy Interrupts . | . . . Stealth | -11 -10 -10 --------- Run | Yrd Mat Sub Distress Signals . | . . . Communications Jammed . | . . . Distress Signals . | . . . Times Spotted 40 | . 13 27 Peak Tracking Total 5 | . 3 5 Tactical Retreats 5 | . 1 4 Traps | -11 -10 -10 ------- Run | Yrd Mat Sub Traps Triggered 1 | . 1 . Indirectly . | . . . Trap Hack Attempts . | . . . Triggered . | . . . Disarmed . | . . . Reprogrammed . | . . . Reused . | . . . Traps Extracted . | . . . Installed . | . . . Triggered . | . . . Machines | -11 -10 -10 ---------- Run | Yrd Mat Sub Machines Disabled 2 | . . 2 Max in Single Turn 1 | . . 1 Machines Repaired . | . . . Machines Dismantled . | . . . Machines Sabotaged . | . . . Overloaded Fab Kills . | . . . Hacking | -11 -10 -10 --------- Run | Yrd Mat Sub Machines Accessed 5 | . 5 . Terminals 5 | . 5 . Fabricators . | . . . Repair Stations . | . . . Recycling Units . | . . . Scanalyzers . | . . . Garrison Access . | . . . Total Hacks 21 | . 21 . Successful 14 | . 14 . Failed 6 | . 6 . Catastrophic . | . . . Database Lockouts 1 | . 1 . Manual 16 | . 16 . Terminals 21 | . 21 . Fabricators . | . . . Repair Stations . | . . . Recycling Units . | . . . Scanalyzers . | . . . Garrison Access . | . . . Terminal Hacks 7 | . 7 . Robot Analysis 1 | . 1 . Prototype ID Bank 1 | . 1 . Terminal Index 1 | . 1 . Locate Traps 2 | . 2 . Hauler Manifests 1 | . 1 . Zone Layout 1 | . 1 . Fabricator Hacks . | . . . Repair Station Hacks . | . . . Recycling Unit Hacks . | . . . Scanalyzer . | . . . Garrison Access Hacks . | . . . Unauthorized Hacks 7 | . 7 . Terminals 7 | . 7 . Botnet 2 | . 2 . Skim 5 | . 5 . Fabricators . | . . . Repair Stations . | . . . Recycling Units . | . . . Scanalyzers . | . . . Garrison Access . | . . . Data Cores Recovered . | . . . Used . | . . . Hacking Detections 5 | . 5 . Full Trace Events . | . . . Feedback Events . | . . . Feedback Blocked . | . . . Robot Schematics Acquired . | . . . Robots Built . | . . . Authchips . | . . . Time . | . . . Total Robot Build Rating . | . . . Part Schematics Acquired . | . . . Parts Built . | . . . Authchips . | . . . Time . | . . . Total Part Build Rating . | . . . Parts Repaired . | . . . Time . | . . . Parts Recycled . | . . . Recycled Matter . | . . . Retrieved Matter . | . . . Retrieved Components . | . . . Parts Scanalyzed . | . . . Part Schematics Acquired . | . . . Parts Damaged . | . . . Bothacking | -11 -10 -10 ------------ Run | Yrd Mat Sub Used RIF Installer . | . . . Robots Hacked . | . . . Non-combat . | . . . Combat . | . . . Robot Hacks Applied . | . . . Relay Couplers Released . | . . . Fabnet Peak Effective % . | . . . Robots Rewired . | . . . Allies Hacked . | . . . Hacks Repelled . | . . . Allies | -11 -10 -10 -------- Run | Yrd Mat Sub Total Allies . | . . . Largest Group . | . . . Highest-Rated Group . | . . . Highest-Rated Ally . | . . . Total Orders . | . . . Ally Attacks . | . . . Total Damage . | . . . Kills . | . . . Allies Corrupted . | . . . Allies Melted . | . . . Intel | -11 -10 -10 ------- Run | Yrd Mat Sub Active Infowar (turns) 1153 | 62 631 460 Seismic 1153 | 62 631 460 Robot Analysis Total 1 | . 1 . Derelict Logs Recovered 1 | . . 1 Drone Launches . | . . . Drone Recoveries . | . . . Exploration | -11 -10 -10 ------------- Run | Yrd Mat Sub Turns Passed 1694 | 155 832 707 Spaces Moved 824 | 66 412 346 Core 24 | 24 . . Treads 272 | 42 230 . Legs . | . . . Wheels 528 | . 182 346 Hover . | . . . Flight . | . . . Fastest Speed 50 | 50 160 175 Average Speed 167 | 137 166 175 Slowest Speed 200 | 200 175 175 Overloaded Moves . | . . . Propulsion Burnouts . | . . . Robots Hopped . | . . . Potential Cave-ins . | . . . Cave-ins Triggered . | . . . Exploration Rate (%) 33 | 6 66 29 Regions Visited 2 Branch Regions 1 Pre-discovered Areas . | . . . Known Exits Taken 1 | . 1 . Unknown Exits Taken 1 | 1 . . Scrap Searched 1 | . . 1 Spaces Dug 2 | . 2 . Terrain Destroyed 16 | . 2 14 Melee 2 | . 2 . Projectile . | . . . AOE 14 | . . 14 Terrain Rammed . | . . . Walls Destroyed . | . . . Machines Disabled . | . . . Actions | -11 -10 -10 --------- Run | Yrd Mat Sub Total 976 | 95 479 402 Wait 17 | . 4 13 Move 822 | 65 411 346 Hop . | . . . Pick Up 27 | 5 12 10 Fast Attach 6 | 6 . . Attach 5 | 1 1 3 Detach . | . . . Swap 7 | . 4 3 Drop . | . . . Fire 87 | 18 42 27 Melee 5 | . 5 . Ram . | . . . Kick . | . . . Crush . | . . . Escape Stasis . | . . . Rewire . | . . . Trap . | . . . Miscellaneous . | . . . Route ------- -11/Scrapyard -10/Materials (discovered 4 exits: [*Mat x2] / [*Min] / *Sub) -10/Subcaves (discovered 2 exits: [*Mat] / [*Rec]) History --------- Turn | Location | Event 27 | -11/Scrapyard | Discovered new exit (range 16) 156 | -11/Scrapyard | Entered Materials 309 | -10/Materials | Build established: Mutant 312 | -10/Materials | Central database locked down 346 | -10/Materials | Discovered new exit (range 10) 512 | -10/Materials | Discovered new exit (range 14) 702 | -10/Materials | Discovered new exit (range 8) 877 | -10/Materials | Learned location of 1 exit from Storage 948 | -10/Materials | Identified exit to Subcaves 988 | -10/Materials | Entered Subcaves 989 | -10/Subcaves | Approached by a straggling Scientist 997 | -10/Subcaves | Learned Materials non-interactive machine intel 1042 | -10/Subcaves | Shifting Twisted Machinery released Sub. Laser 1042 | -10/Subcaves | Shifting Twisted Machinery released Hvy. Riot Gun 1150 | -10/Subcaves | Shifting Twisted Machinery released Piercing Trap 1150 | -10/Subcaves | Shifting Twisted Machinery released Sub. Laser 1179 | -10/Subcaves | Discovered new exit (range 7) 1190 | -10/Subcaves | Core integrity fell below 50% 1241 | -10/Subcaves | Discovered new exit (range 9) 1373 | -10/Subcaves | A swath of the cavern ceiling suddenly collapsed 1459 | -10/Subcaves | Core integrity fell below 20% 1487 | -10/Subcaves | Lost 3 parts (1p1n1w) 1695 | -10/Subcaves | Destroyed by G-47 Trooper with Particle Gun Last Messages --------------- 01319_ Searching scrap... 01319_ Found Barrage Gun. 01319_ Found 54 Matter. 01323_ Acquired Barrage Gun. 6P-AHD(c): "I think it's somewhere southeast of here" A swath of the cavern ceiling suddenly collapses. 6P-AHD(c): "I think it's somewhere south of here" 01428_ XY-6AC(R): "SUB#$%&!" 6P-AHD(c): "I think it's somewhere south of here" 01448_ Ion Engine destroyed. 01449_ Chain reaction triggered in Sub. Power Source. 01449_ XY-6AC(R) destroyed. 01452_ Acquired 23 matter. 01456_ Lgt. Treads destroyed. 01456_ Hvy. Riot Gun destroyed. 01468_ VB-BK3(R) destroyed. 01474_ Acquired 16 matter. 01491_ Acquired Sub. Optics. 6P-AHD(c): "I think it's somewhere south of here" 01656_ Acquired 30 matter. Map ----- +----------------------------------------------------+ | | | | | | | | | ?????????????????????????????????????????????????? | | ?????????????????????????????????????????????????? | | ?????????????????????????????????????????????????? | | ?????????????????????????????????????????????????? | | ?????????????????????????????????????????????????? | | ?????????????????????????????????????????????????? | | ?????????????????????????????????????????????????? | | ?????????????????????????????????????????????????? | | ?????????????????????????????????????????????????? | | ?????????????????????????????????????????????????? | | ?????????????????????????????????????????????????? | | ?????????????????????????????????????????????????? | | ?????????????????????????????????????????????????? | | ?????????????????????????????????????????????????? | | ???????????????????????????????????######????????? | | ????????????????????????###???????## #########? | | ????????????????????????# ##??????# ## ## | | ????????????????????????# ######## | | ????????????????????????# !## | | ???????????????# ??????## %*%= ### | | ????????????????# ???## !&*c ##?### | | ????????????????# ## %@ # #????## | | ?????????????????# g ### ## #????### | | ?????????????????## #?# ## ##??????? | | ??????????????????## ##?# ############???????? | | ???????????????????#### ##??###??????????????????? | | ??????????????????????###????????????????????????? | | ?????????????????????????????????????????????????? | | ?????????????????????????????????????????????????? | | ?????????????????????????????????????????????????? | | ?????????????????????????????????????###########?? | | ?????????????????????????????????????#" ### | | ?????????????????????????????????????# & # | | ?????????????????????????????????????# " | | ????????????????????????????????????## " | | ????????????????????????????????????# " " | | ????????????????????????????????????# | | ????????????????????????????????????# | | ??????????????????????###???????????# " | | ?????????????????????## #??????????# " | | ?????????????????????? ??????????# "#"" | | ?????????????????????? #????????### ### | | ??????????????????????? ????????# ##" "### | | ???????????????????????? ??????### #"" # | | ????????????????????????# ??##### | | ???????????????????????## ?## # | +----------------------------------------------------+ Best States ------------- Heat Dissipation 25 Energy Generation 10 Energy Capacity 250 Matter Stores 300 Matter Capacity 300 Sight Range 16 Terrain Scan Density 10 Weapon Shielding 33 Evasion (%) 50 Recoil Reduction 2 Item Schematics ----------------- None Robot Schematics ------------------ None Fabricated ------------ Nothing Repaired ---------- Nothing Alien Tech Used ----------------- None Achievements -------------- None Challenges ------------ None Game ------ Seed ChromionTechCalibrator Manual? 0 Play Time 00:09:15 Cumulative 236.6 hours Start 2025.08.07 @ 18:05:24 End 2025.08.07 @ 18:14:26 Sessions 1 Manual Loads 0 Difficulty Rogue Special Mode None Game No. 253 Rogue 253 Adventurer 0 Explorer 0 Win Type - Total 10 Types 5/0/3/1/0/0/0/0/0/1 Lore% 74 Gallery% 70 Achievement% 64 Wizard Run 0 Options --------- Layout 1 ASCII 0 Keyboard 1 Movement Numpad Keybinds 0 Fullscreen 1 Font 32/SmallcapsGlow Map View 77x35 Zoom Use 0% Tactical HUD 1 Map Filters NONE Filters NONE Steam 1 RUN: 3486ade3-d430-4e9d-863d-67dbfcac2ab3